fUST/lending_fUST_20260107
["ID","MTS","AMOUNT","RATE_DAILY","PERIOD"]
[400668802,1767775870219,-151.0,0.00028493,7]
[400668804,1767775870228,-206.665209,0.00028493,7]
[400668806,1767775870238,-500.0,0.00028493,2]
[400668808,1767775870247,-206.665209,0.00028493,7]
[400668810,1767775870256,-576.04529452,0.00028493,2]
[400668812,1767775870265,-3088.57,0.00028493,2]
[400668814,1767775870274,-206.665209,0.00028493,7]
[400668816,1767775870283,-206.665209,0.00028493,7]
[400668818,1767775870291,-153.400685,0.00028493,7]
[400668820,1767775870300,-500.0,0.00028493,2]
[400668822,1767775870310,-500.0,0.00028493,2]
[400668824,1767775870319,-500.0,0.00028493,2]
[400668825,1767775870328,-151.0,0.00028493,7]
[400668827,1767775870338,-549.67284474,0.00028493,2]
[400668829,1767775870349,-500.0,0.00028493,2]
[400668831,1767775870358,-185.60635,0.00028493,7]
[400668833,1767775870368,-151.0,0.00028493,7]
[400668835,1767775870378,-373.39371197,0.00028493,2]
[400668837,1767775870388,-500.0,0.00028493,2]
[400668839,1767775870397,-185.60635,0.00028493,7]
[400668841,1767775870410,-362.31772232,0.00028493,2]
[400668843,1767775870419,-151.0,0.00028493,7]
[400668845,1767775870428,-185.60635,0.00028493,7]
[400668847,1767775870439,-151.0,0.00028493,7]
[400668849,1767775870449,-500.0,0.00028493,2]
[400668851,1767775870458,-151.0,0.00028493,7]
[400668853,1767775870468,-185.60635,0.00028493,7]
[400668855,1767775870477,-850.0,0.00028493,5]
[400668857,1767775870487,-1345.06654584,0.00028493,5]
[400668859,1767775870496,-350.0,0.00028493,5]
[400668861,1767775870506,-350.0,0.00028493,5]
[400668863,1767775870516,-1908.17,0.000285,7]
[400668865,1767775870525,-258.12,0.000285,7]
[400668867,1767775870534,-609.65523695,0.00028533,2]
[400668869,1767775870543,-307.0,0.00028547,2]
[400668871,1767775870553,-3532.97395747,0.0002856,5]
[400668873,1767775870562,-3054.26379426,0.0002856,5]
[400668875,1767775870571,-6865.22144356,0.0002856,5]
[400668877,1767775870580,-1194.23922271,0.0002856,5]
[400668879,1767775870589,-4772.17993396,0.0002856,5]
[400668881,1767775870598,-763.56594857,0.0002856,5]
[400668883,1767775870608,-151.0,0.00028596,7]
[400668885,1767775870617,-151.531548,0.00028596,7]
[400668887,1767775870626,-151.0,0.00028596,7]
[400668889,1767775870636,-151.853197,0.00028596,7]
[400668891,1767775870646,-151.0,0.00028596,7]
[400668893,1767775870655,-187.815389,0.00028596,7]
[400668894,1767775870664,-187.815389,0.00028596,7]
[400668895,1767775870674,-151.0,0.00028596,2]
[400668896,1767775870682,-187.815389,0.00028596,7]
[400668897,1767775870691,-187.815389,0.00028596,7]
[400668898,1767775870700,-151.0,0.00028596,7]
[400668899,1767775870709,-612.995739,0.00028596,7]
[400668900,1767775870717,-612.995739,0.00028596,7]
[400668901,1767775870729,-612.995739,0.00028596,7]
[400668902,1767775870740,-612.995739,0.00028596,7]
[400668903,1767775870748,-226.840481,0.00028596,7]
[400668904,1767775870757,-151.0,0.00028596,2]
[400668905,1767775870766,-151.0,0.00028596,2]
[400668906,1767775870775,-156.587,0.00028596,2]
[400668907,1767775870784,-151.76560532,0.00028596,2]
[400668908,1767775870793,-879.43912167,0.00028596,2]
[400668909,1767775870803,-160.0,0.00028596,2]
[400668910,1767775870811,-160.0,0.00028596,2]
[400668911,1767775870820,-160.79089558,0.00028596,2]
[400668912,1767775870829,-250.0,0.00028596,2]
[400668913,1767775870838,-187.78006526,0.00028596,2]
[400668914,1767775870847,-250.0,0.00028596,2]
[400668915,1767775870856,-252.94566259,0.00028596,2]
[400668916,1767775870865,-514.84070869,0.00028596,2]
[400668917,1767775870874,-500.0,0.00028596,2]
[400668918,1767775870883,-30000.0,0.00028596,2]
[400668919,1767775870892,-500.0,0.00028596,2]
[400668920,1767775870900,-500.0,0.00028596,2]
[400668921,1767775870909,-500.0,0.00028596,2]
[400668922,1767775870918,-500.0,0.00028596,2]
[400668923,1767775870926,-250.0,0.00028596,2]
[400668924,1767775870936,-500.0,0.00028596,2]
[400668925,1767775870945,-250.0,0.00028596,2]
[400668926,1767775870954,-562.53594477,0.00028596,2]
[400668927,1767775870964,-250.0,0.00028596,2]
[400668928,1767775870973,-250.0,0.00028596,2]
[400668929,1767775870982,-1500.0,0.00028596,2]
[400668930,1767775870991,-250.0,0.00028596,2]
[400668931,1767775871001,-1500.0,0.00028596,2]
[400668932,1767775871010,-2487.15318209,0.00028596,2]
[400668933,1767775871020,-250.83955872,0.00028596,2]
[400668934,1767775871029,-151.0,0.00028596,2]
[400668935,1767775871038,-1500.0,0.00028596,2]
[400668937,1767775871047,-151.0,0.00028596,2]
[400668938,1767775871056,-1500.0,0.00028596,2]
[400668939,1767775871065,-241.40612291,0.00028596,2]
[400668940,1767775871075,-1189.60316379,0.00028596,2]
[400668941,1767775871085,-250.0,0.00028596,2]
[400668943,1767775871095,-265.04542702,0.00028596,2]
[400668945,1767775871105,-151.0,0.00028596,2]
[400668947,1767775871114,-151.0,0.00028596,2]
[400668949,1767775871124,-157.242965,0.00028596,2]
[400668950,1767775871134,-250.0,0.00028596,2]
[400668952,1767775871144,-500.0,0.00028663,7]
[400668954,1767775871153,-15924.41,0.000287,3]
[400668956,1767775871162,-500.0,0.00028767,2]
[400668958,1767775871171,-500.0,0.00028767,2]
[400668960,1767775871180,-500.0,0.00028767,2]
[400668962,1767775871190,-500.0,0.00028767,2]
[400668964,1767775871199,-500.0,0.00028767,2]
[400668966,1767775871208,-581.31244025,0.00028767,2]
[400668968,1767775871216,-500.0,0.00028767,2]
[400668970,1767775871225,-575.65250457,0.00028767,2]
[400668972,1767775871235,-626.98541799,0.00028767,2]
[400668974,1767775871244,-500.0,0.00028767,2]
[400668976,1767775871253,-500.0,0.00028767,2]
[400668978,1767775871263,-500.0,0.00028767,2]
[400668980,1767775871272,-500.0,0.00028767,2]
[400668981,1767775871281,-500.0,0.00028767,2]
[400668983,1767775871290,-500.0,0.00028767,2]
[400668985,1767775871300,-414.66991309,0.00028767,2]
[400668987,1767775871309,-500.0,0.00028767,2]
[400668989,1767775871319,-599.79697724,0.00028767,2]
[400668991,1767775871329,-500.0,0.00028767,2]
[400668993,1767775871338,-500.0,0.00028767,2]
[400668995,1767775871348,-536.79176746,0.00028767,2]
[400668997,1767775871357,-2147.16706982,0.00028767,2]
[400668999,1767775871367,-4831.1259071,0.00028767,2]
[400669001,1767775871376,-500.0,0.00028767,2]
[400669003,1767775871387,-557.84,0.00028767,2]
[400669005,1767775871396,-485.25164265,0.00028767,2]
[400669007,1767775871405,-197.42053416,0.00028767,2]
[400669009,1767775871415,-494.3068847,0.00028767,2]
[400669011,1767775871424,-500.0,0.00028767,2]
[400669013,1767775871433,-278.02017742,0.00028767,2]
[400669015,1767775871442,-463.66455521,0.00028767,2]
[400669017,1767775871451,-500.0,0.00028767,2]
[400669019,1767775871461,-500.0,0.00028767,2]
[400669021,1767775871471,-500.0,0.00028767,2]
[400669023,1767775871480,-500.0,0.00028767,2]
[400669025,1767775871489,-157.53465231,0.00028767,2]
[400669027,1767775871498,-500.0,0.00028767,2]
[400669029,1767775871510,-500.0,0.00028767,2]
[400669031,1767775871519,-500.0,0.00028767,2]
[400669033,1767775871528,-1000.0,0.00028767,2]
[400669035,1767775871537,-500.0,0.00028767,2]
[400669037,1767775871546,-500.0,0.00028767,2]
[400669039,1767775871555,-305.99608729,0.00028767,2]
[400669041,1767775871565,-640.87179641,0.00028767,2]
[400669043,1767775871574,-500.0,0.00028767,2]
[400669045,1767775871583,-561.94755424,0.00028767,2]
[400669047,1767775871593,-582.84,0.00028767,2]
[400669048,1767775871602,-413.01976309,0.00028767,2]
[400669050,1767775871612,-1652.07905235,0.00028767,2]
[400669052,1767775871622,-3717.17786779,0.00028767,2]
[400669054,1767775871633,-6608.31620941,0.00028767,2]
[400669056,1767775871643,-10325.4940772,0.00028767,2]
[400669058,1767775871653,-500.0,0.00028767,2]
[400669060,1767775871662,-500.0,0.00028767,2]
[400669062,1767775871671,-500.0,0.00028767,2]
[400669064,1767775871682,-913.08,0.00028767,2]
[400669066,1767775871691,-500.0,0.00028767,2]
[400669068,1767775871700,-181.78079938,0.00028767,2]
[400669070,1767775871709,-500.0,0.00028767,2]
[400669072,1767775871719,-178.97567545,0.00028767,2]
[400669074,1767775871732,-373.36493827,0.00028767,2]
[400669076,1767775871741,-500.0,0.00028767,2]
[400669078,1767775871750,-500.0,0.00028767,2]
[400669080,1767775871759,-1000.0,0.00028767,2]
[400669081,1767775871767,-500.0,0.00028767,2]
[400669083,1767775871776,-596.51574051,0.00028767,2]
[400669085,1767775871785,-328.70746168,0.00028767,2]
[400669087,1767775871794,-500.0,0.00028767,2]
[400669089,1767775871803,-906.34226724,0.00028767,2]
[400669091,1767775871812,-3625.36906895,0.00028767,2]
[400669093,1767775871821,-8157.08040514,0.00028767,2]
[400669095,1767775871830,-203.54755761,0.00028767,2]
[400669097,1767775871839,-813.37604021,0.00028767,2]
[400669099,1767775871850,-500.0,0.00028767,2]
[400669101,1767775871859,-563.71974159,0.00028767,2]
[400669114,1767775871971,-756.53,0.00028767,2]
[400669116,1767775871980,-327.42862214,0.00028767,2]
[400669118,1767775871990,-195.67,0.00028767,2]
[400669120,1767775872000,-500.0,0.00028767,2]
[400669121,1767775872009,-640.13833819,0.00028767,2]
[400669122,1767775872018,-500.0,0.00028767,2]
[400669123,1767775872027,-500.0,0.00028767,2]
[400669124,1767775872037,-200.0,0.00028767,2]
[400669125,1767775872046,-500.0,0.00028767,2]
[400669126,1767775872055,-500.0,0.00028767,2]
[400669127,1767775872064,-500.0,0.00028767,2]
[400669128,1767775872073,-500.0,0.00028767,2]
[400669129,1767775872082,-500.0,0.00028767,2]
[400669130,1767775872092,-500.0,0.00028767,2]
[400669131,1767775872101,-500.0,0.00028767,2]
[400669132,1767775872110,-500.0,0.00028767,2]
[400669133,1767775872119,-209.524359,0.00028767,7]
[400669134,1767775872128,-500.0,0.00028767,2]
[400669135,1767775872137,-209.524359,0.00028767,7]
[400669136,1767775872146,-209.524359,0.00028767,7]
[400669137,1767775872155,-500.0,0.00028767,2]
[400669138,1767775872165,-209.524359,0.00028767,7]
[400669139,1767775872174,-500.0,0.00028767,2]
[400669140,1767775872184,-500.0,0.00028767,2]
[400669141,1767775872193,-319.89287406,0.00028767,2]
[400669142,1767775872202,-241.004676,0.00028767,7]
[400669143,1767775872212,-241.004676,0.00028767,7]
[400669144,1767775872221,-241.004676,0.00028767,7]
[400669145,1767775872231,-500.0,0.00028767,2]
[400669146,1767775872240,-3991.84,0.00028767,2]
[400669147,1767775872250,-241.004676,0.00028767,7]
[400669148,1767775872260,-186.329815,0.00028767,7]
[400669149,1767775872269,-500.0,0.00028767,2]
[400669150,1767775872278,-186.329815,0.00028767,7]
[400669151,1767775872289,-186.329815,0.00028767,7]
[400669152,1767775872298,-186.329815,0.00028767,7]
[400669153,1767775872308,-154.171022,0.00028767,7]
[400669154,1767775872317,-530.111159,0.00028767,7]
[400669155,1767775872326,-500.0,0.00028767,2]
[400669156,1767775872336,-530.111159,0.00028767,7]
[400669157,1767775872346,-530.111159,0.00028767,7]
[400669158,1767775872355,-225.672265,0.00028767,7]
[400669159,1767775872364,-530.111159,0.00028767,7]
[400669160,1767775872374,-225.672265,0.00028767,7]
[400669161,1767775872383,-225.672265,0.00028767,7]
[400669162,1767775872393,-500.0,0.00028767,2]
[400669163,1767775872403,-225.672265,0.00028767,7]
[400669164,1767775872412,-500.0,0.00028767,2]
[400669165,1767775872422,-151.0,0.00028767,7]
[400669166,1767775872432,-500.0,0.00028767,2]
[400669167,1767775872443,-151.0,0.00028767,7]
[400669168,1767775872457,-151.0,0.00028767,7]
[400669169,1767775872467,-218.702509,0.00028767,7]
[400669170,1767775872477,-218.702509,0.00028767,7]
[400669171,1767775872488,-154.60987058,0.00028767,2]
[400669172,1767775872498,-218.702509,0.00028767,7]
[400669173,1767775872508,-500.00000002,0.00028767,2]
[400669174,1767775872518,-218.702509,0.00028767,7]
[400669175,1767775872527,-500.0,0.00028767,2]
[400669176,1767775872537,-725.03,0.00028767,2]
[400669177,1767775872546,-184.812283,0.00028767,7]
[400669178,1767775872556,-179.448151,0.00028767,7]
[400669179,1767775872566,-500.0,0.00028767,2]
[400669180,1767775872575,-184.812283,0.00028767,7]
[400669181,1767775872585,-184.812283,0.00028767,7]
[400669182,1767775872594,-500.0,0.00028767,2]
[400669183,1767775872604,-500.0,0.00028767,2]
[400669184,1767775872614,-184.812283,0.00028767,7]
[400669185,1767775872623,-151.0,0.00028767,7]
[400669186,1767775872634,-500.0,0.00028767,2]
[400669187,1767775872643,-500.0,0.00028767,2]
[400669188,1767775872652,-151.0,0.00028767,7]
[400669189,1767775872662,-836.74,0.00028767,2]
[400669190,1767775872671,-500.0,0.00028767,2]
[400669191,1767775872680,-500.0,0.00028767,2]
[400669192,1767775872690,-956.27,0.00028767,2]
[400669193,1767775872703,-500.0,0.00028767,2]
[400669194,1767775872712,-500.0,0.00028767,2]
[400669195,1767775872722,-552.51652683,0.00028767,2]
[400669196,1767775872734,-151.0,0.00028767,7]
[400669197,1767775872744,-151.0,0.00028767,7]
[400669198,1767775872753,-441.10124557,0.00028767,2]
[400669199,1767775872763,-247.352857,0.00028767,7]
[400669200,1767775872772,-247.352857,0.00028767,7]
[400669201,1767775872783,-151.0,0.00028767,7]
[400669202,1767775872792,-247.352857,0.00028767,7]
[400669203,1767775872803,-292.25444608,0.00028767,2]
[400669204,1767775872813,-247.352857,0.00028767,7]
[400669205,1767775872822,-500.0,0.00028767,2]
[400669206,1767775872832,-500.0,0.00028767,2]
[400669207,1767775872842,-500.0,0.00028767,2]
[400669208,1767775872852,-500.0,0.00028767,2]
[400669209,1767775872862,-500.0,0.00028767,2]
[400669210,1767775872871,-151.0,0.00028767,7]
[400669211,1767775872880,-500.0,0.00028767,2]
[400669212,1767775872890,-151.0,0.00028767,7]
[400669213,1767775872900,-500.0,0.00028767,2]
[400669214,1767775872909,-151.0,0.00028767,7]
[400669215,1767775872919,-500.0,0.00028767,2]
[400669216,1767775872928,-151.0,0.00028767,7]
[400669217,1767775872937,-205.742012,0.00028767,7]
[400669218,1767775872947,-151.0,0.00028767,7]
[400669219,1767775872957,-205.742012,0.00028767,7]
[400669220,1767775872966,-500.0,0.00028767,2]
[400669221,1767775872975,-500.0,0.00028767,2]
[400669222,1767775872985,-500.0,0.00028767,2]
[400669223,1767775872994,-205.742012,0.00028767,7]
[400669224,1767775873003,-205.742012,0.00028767,7]
[400669225,1767775873012,-151.0,0.00028767,7]
[400669226,1767775873021,-500.0,0.00028767,2]
[400669227,1767775873031,-151.0,0.00028767,7]
[400669228,1767775873039,-4613.91,0.00028767,2]
[400669229,1767775873050,-500.0,0.00028767,2]
[400669230,1767775873066,-500.0,0.00028767,2]
[400669231,1767775873084,-1664.343388,0.00028767,7]
[400669232,1767775873097,-678.0,0.00028767,2]
[400669233,1767775873111,-1664.343388,0.00028767,7]
[400669234,1767775873125,-14665.45,0.00028767,2]
[400669235,1767775873143,-1016.281206,0.00028767,7]
[400669236,1767775873157,-500.0,0.00028767,2]
[400669237,1767775873174,-1016.281206,0.00028767,7]
[400669238,1767775873188,-500.0,0.00028767,2]
[400669239,1767775873203,-1016.281206,0.00028767,7]
[400669240,1767775873216,-500.0,0.00028767,2]
[400669241,1767775873232,-1016.281206,0.00028767,7]
[400669242,1767775873246,-500.0,0.00028767,2]
[400669243,1767775873258,-500.0,0.00028767,2]
[400669244,1767775873272,-500.0,0.00028767,2]
[400669245,1767775873287,-500.0,0.00028767,2]
[400669246,1767775873301,-612.66554884,0.00028767,2]
[400669247,1767775873316,-500.0,0.00028767,2]
[400669248,1767775873332,-284.84999184,0.00028767,2]
[400669249,1767775873347,-500.0,0.00028767,2]
[400669250,1767775873358,-440.287203,0.00028767,7]
[400669251,1767775873371,-2787.6,0.00028767,2]
[400669252,1767775873388,-440.287203,0.00028767,7]
[400669253,1767775873401,-440.287203,0.00028767,7]
[400669254,1767775873414,-395.05101426,0.00028767,2]
[400669255,1767775873427,-440.287203,0.00028767,7]
[400669256,1767775873441,-177.524366,0.00028767,7]
[400669257,1767775873452,-661.34,0.00028767,2]
[400669258,1767775873467,-390.92977,0.00028767,7]
[400669259,1767775873479,-500.0,0.00028767,2]
[400669260,1767775873491,-500.0,0.00028767,2]
[400669261,1767775873505,-500.0,0.00028767,2]
[400669262,1767775873518,-151.0,0.00028767,7]
[400669263,1767775873530,-390.92977,0.00028767,7]
[400669264,1767775873543,-500.0,0.00028767,2]
[400669265,1767775873556,-390.92977,0.00028767,7]
[400669266,1767775873568,-500.0,0.00028767,2]
[400669267,1767775873581,-390.92977,0.00028767,7]
[400669268,1767775873594,-198.57134619,0.00028767,2]
[400669269,1767775873606,-151.0,0.00028767,7]
[400669270,1767775873619,-301.15409314,0.00028767,2]
[400669271,1767775873632,-505.05,0.00028767,2]
[400669272,1767775873644,-502.05979072,0.00028767,2]
[400669273,1767775873655,-3024.23,0.00028767,2]
[400669274,1767775873667,-717.62,0.00028767,2]
[400669275,1767775873679,-500.0,0.00028767,2]
[400669276,1767775873691,-151.0,0.00028767,7]
[400669277,1767775873705,-151.0,0.00028767,7]
[400669278,1767775873717,-909.99,0.00028767,2]
[400669279,1767775873732,-500.0,0.00028767,2]
[400669280,1767775873743,-2410.47,0.00028767,4]
[400669281,1767775873755,-601.36,0.00028767,2]
[400669282,1767775873767,-160.97172123,0.00028767,2]
[400669283,1767775873779,-500.0,0.00028767,2]
[400669284,1767775873792,-151.0,0.00028767,7]
[400669285,1767775873803,-500.0,0.00028767,2]
[400669286,1767775873815,-299.58088726,0.00028767,2]
[400669287,1767775873827,-500.0,0.00028767,2]
[400669288,1767775873838,-237.990209,0.00028767,7]
[400669289,1767775873851,-853.68,0.00028767,2]
[400669290,1767775873863,-500.0,0.00028767,2]
[400669291,1767775873874,-301.85499701,0.00028767,2]
[400669292,1767775873886,-634.815792,0.00028767,7]
[400669293,1767775873898,-634.815792,0.00028767,7]
[400669294,1767775873909,-634.815792,0.00028767,7]
[400669295,1767775873921,-300.0,0.00028767,7]
[400669296,1767775873933,-500.0,0.00028767,2]
[400669297,1767775873945,-634.815792,0.00028767,7]
[400669298,1767775873957,-1076.6,0.00028767,2]
[400669299,1767775873969,-500.0,0.00028767,2]
[400669300,1767775873980,-300.0,0.00028767,7]
[400669301,1767775873992,-500.0,0.00028767,2]
[400669302,1767775874004,-300.0,0.00028767,7]
[400669303,1767775874016,-222.39624112,0.00028767,2]
[400669304,1767775874028,-500.0,0.00028767,2]
[400669305,1767775874039,-548.79,0.00028767,2]
[400669306,1767775874054,-5656.2215875,0.00028767,2]
[400669307,1767775874066,-500.0,0.00028767,2]
[400669308,1767775874079,-300.0,0.00028767,7]
[400669309,1767775874092,-689.83,0.00028767,2]
[400669310,1767775874105,-298.315005,0.00028767,7]
[400669311,1767775874117,-454.31130576,0.00028767,2]
[400669312,1767775874129,-298.315005,0.00028767,7]
[400669313,1767775874142,-366.0246983,0.00028767,2]
[400669314,1767775874153,-298.315005,0.00028767,7]
[400669315,1767775874165,-500.0,0.00028767,2]
[400669316,1767775874176,-298.315005,0.00028767,7]
[400669317,1767775874188,-500.0,0.00028767,2]
[400669318,1767775874199,-500.0,0.00028767,2]
[400669319,1767775874211,-500.0,0.00028767,2]
[400669320,1767775874224,-500.0,0.00028767,2]
[400669321,1767775874236,-271.00434571,0.00028767,2]
[400669322,1767775874248,-690.11,0.00028767,2]
[400669323,1767775874260,-500.0,0.00028767,2]
[400669324,1767775874272,-604.98079677,0.00028767,2]
[400669325,1767775874284,-500.0,0.00028767,2]
[400669326,1767775874296,-500.0,0.00028767,2]
[400669327,1767775874308,-290.50830417,0.00028767,2]
[400669328,1767775874322,-449.28664847,0.00028767,2]
[400669329,1767775874333,-500.0,0.00028767,2]
[400669330,1767775874346,-500.0,0.00028767,2]
[400669331,1767775874358,-836.4,0.00028767,2]
[400669332,1767775874370,-500.0,0.00028767,2]
[400669333,1767775874382,-500.0,0.00028767,2]
[400669334,1767775874396,-500.0,0.00028767,2]
[400669335,1767775874408,-512.01473641,0.00028767,2]
[400669336,1767775874420,-500.0,0.00028767,2]
[400669337,1767775874432,-500.0,0.00028767,2]
[400669338,1767775874451,-500.0,0.00028767,2]
[400669339,1767775874463,-500.0,0.00028767,2]
[400669340,1767775874475,-797.84,0.00028767,2]
[400669341,1767775874487,-500.0,0.00028767,2]
[400669342,1767775874498,-3088.57,0.00028767,2]
[400669343,1767775874510,-500.0,0.00028767,2]
[400669344,1767775874522,-500.0,0.00028767,2]
[400669345,1767775874727,-617.61281973,0.00028767,2]
[400669346,1767775874742,-500.0,0.00028767,2]
[400669347,1767775874752,-500.0,0.00028767,2]
[400669348,1767775874761,-500.0,0.00028767,2]
[400669349,1767775874771,-250.875815,0.00028767,60]
[400669350,1767775874780,-167.78,0.000288,7]
[400669351,1767775874790,-500.0,0.00028807,7]
[400669352,1767775874799,-360.0,0.00028807,2]
[400669353,1767775874810,-20798.2223711,0.00028837,2]
[400669354,1767775874819,-708.0507087,0.00028837,2]
[400669355,1767775874828,-43528.3447718,0.00028837,2]
[400669356,1767775874837,-194.927323,0.00028837,7]
[400669357,1767775874847,-194.927323,0.00028837,7]
[400669358,1767775874856,-194.927323,0.00028837,7]
[400669359,1767775874865,-194.927323,0.00028837,7]
[400669360,1767775874874,-200.632316,0.00028837,7]
[400669361,1767775874883,-200.632316,0.00028837,7]
[400669362,1767775874893,-200.632316,0.00028837,7]
[400669363,1767775874903,-200.632316,0.00028837,7]
[400669364,1767775874912,-2811.62,0.000289,14]
[400669365,1767775874921,-500.0,0.00028999,2]
[400669366,1767775874931,-502.76917188,0.00028999,2]
[400669367,1767775874940,-500.0,0.00028999,2]
[400669368,1767775874949,-2251.87,0.00028999,2]
[400669369,1767775874959,-637.59,0.00028999,2]
[400669370,1767775874968,-122520.34661145,0.00029,30]
[400669371,1767775874978,-151.0,0.00029,7]
[400669372,1767775874987,-151.0,0.00029,7]
[400669373,1767775874996,-151.0,0.00029,7]
[400669374,1767775875006,-151.0,0.00029,7]
[400669375,1767775875016,-1041.66666667,0.00029,30]
[400669376,1767775875025,-151.0,0.00029,7]
[400669377,1767775875035,-183576.914528,0.00029029,10]
[400669378,1767775875044,-180.24332849,0.00029029,2]
[400669379,1767775875053,-151.0,0.00029029,7]
[400669380,1767775875063,-151.0,0.00029029,7]
[400669381,1767775875072,-207.616806,0.00029029,7]
[400669382,1767775875081,-151.0,0.00029029,7]
[400669383,1767775875090,-151.0,0.00029029,7]
[400669384,1767775875099,-234.643774,0.00029029,7]
[400669385,1767775875110,-155.076774,0.00029029,7]
[400669386,1767775875119,-151.0,0.00029029,7]
[400669387,1767775875128,-173.61071177,0.00029029,7]
[400669388,1767775875138,-151.0,0.00029029,7]
[400669389,1767775875147,-151.0,0.00029029,7]
[400669390,1767775875156,-151.0,0.00029029,7]
[400669391,1767775875166,-151.0,0.00029029,7]
[400669392,1767775875174,-246.968278,0.00029029,7]
[400669393,1767775875184,-151.0,0.00029029,7]
[400669394,1767775875193,-165.389182,0.00029029,7]
[400669395,1767775875202,-151.0,0.00029029,7]
[400669396,1767775875211,-167.701236,0.00029029,7]
[400669397,1767775875220,-297.211329,0.00029029,7]
[400669398,1767775875230,-151.0,0.00029029,7]
[400669399,1767775875240,-151.0,0.00029029,7]
[400669400,1767775875249,-151.0,0.00029029,7]
[400669401,1767775875259,-292.141919,0.00029029,7]
[400669402,1767775875268,-151.0,0.00029029,7]
[400669403,1767775875277,-234.556182,0.00029029,7]
[400669404,1767775875287,-151.0,0.00029029,7]
[400669405,1767775875297,-151.0,0.00029029,7]
[400669406,1767775875306,-214.456704,0.00029029,7]
[400669407,1767775875317,-214.456704,0.00029029,7]
[400669408,1767775875326,-214.456704,0.00029029,7]
[400669409,1767775875336,-214.456704,0.00029029,7]
[400669410,1767775875346,-151.0,0.00029029,7]
[400669411,1767775875356,-151.0,0.00029029,7]
[400669412,1767775875365,-151.0,0.00029029,7]
[400669413,1767775875374,-609.666208,0.00029029,7]
[400669414,1767775875383,-609.666208,0.00029029,7]
[400669415,1767775875392,-609.666208,0.00029029,7]
[400669416,1767775875402,-609.666208,0.00029029,7]
[400669417,1767775875411,-1626.684503,0.00029029,7]
[400669418,1767775875422,-1626.684503,0.00029029,7]
[400669419,1767775875431,-1626.684503,0.00029029,7]
[400669420,1767775875441,-1626.684503,0.00029029,7]
[400669421,1767775875450,-500.0,0.00029041,2]
[400669422,1767775875460,-500.0,0.00029041,2]
[400669423,1767775875469,-500.0,0.00029041,2]
[400669424,1767775875479,-500.0,0.00029041,2]
[400669425,1767775875489,-500.0,0.00029041,2]
[400669426,1767775875499,-587.55413646,0.00029041,2]
[400669427,1767775875508,-500.0,0.00029041,2]
[400669428,1767775875518,-500.0,0.00029041,2]
[400669429,1767775875527,-500.0,0.00029041,2]
[400669430,1767775875537,-315.17480256,0.00029041,2]
[400669431,1767775875546,-150.28353758,0.00029041,2]
[400669432,1767775875556,-500.0,0.00029041,2]
[400669433,1767775875566,-500.0,0.00029041,2]
[400669434,1767775875575,-500.0,0.00029041,2]
[400669435,1767775875585,-500.0,0.00029041,2]
[400669436,1767775875594,-500.31658857,0.00029041,2]
[400669437,1767775875604,-500.0,0.00029041,2]
[400669438,1767775875614,-500.0,0.00029041,2]
[400669439,1767775875624,-547.91160406,0.00029041,2]
[400669440,1767775875634,-246.60117318,0.00029041,2]